bitfinex/quotes_SOLUSD_20240620
["timestamp","ask_amount","ask_price","bid_price","bid_amount"]
[1718900242889,6.05455585,132.88,132.78,15.4145]
[1718900243090,7.5271,132.86,132.81,7.5292]
[1718900243297,15.5011,132.94,132.79,65.0]
[1718900243298,18.811,132.91,132.82,45.0]
[1718900243589,7.5258,132.88,132.83,13.31759771]
[1718900243794,18.811,132.91,132.84,20.0]
[1718900243993,7.5265,132.87,132.84,20.0]
[1718900244197,7.5257,132.88,132.84,20.0]
[1718900244398,7.5257,132.88,132.83,27.5283]
[1718900244698,18.8124,132.9,132.83,20.0]
[1718900244874,7.5254,132.89,132.85,6.3034]
[1718900245190,18.8081,132.93,132.85,6.3034]
[1718900245368,7.5257,132.88,132.85,6.3034]
[1718900246578,7.5252,132.89,132.85,6.3034]
[1718900246887,7.5234,132.92,132.87,23.7951]
[1718900247091,7.5229,132.93,132.88,7.5255]
[1718900247303,7.5229,132.93,132.87,16.2693]
[1718900247304,7.5225,132.94,132.89,7.5248]
[1718900247475,7.5228,132.93,132.89,20.0]
[1718900248491,7.5234,132.92,132.89,20.0]
[1718900248691,37.6039,132.97,132.88,20.0]
[1718900248992,37.6039,132.97,132.87,16.2693]
[1718900249179,7.5242,132.91,132.87,16.2693]
[1718900249379,37.6039,132.97,132.87,23.7953]
[1718900249380,7.5235,132.92,132.87,23.7953]
[1718900249775,18.8047,132.95,132.88,7.5255]
[1718900250001,37.6039,132.97,132.87,16.2693]
[1718900250195,18.8097,132.92,132.87,16.2693]
[1718900250791,7.524,132.91,132.87,16.2693]
[1718900250993,7.5237,132.92,132.88,52.5255]
[1718900251199,7.5217,132.95,132.91,7.5237]
[1718900251502,7.5212,132.96,132.88,45.0]
[1718900251674,18.797,133.0,132.9,18.811]
[1718900251875,18.797,133.0,132.92,7.523]
[1718900252298,18.797,133.0,132.93,45.0]
[1718900252497,7.5205,132.97,132.93,45.0]
[1718900252685,7.5212,132.96,132.92,45.0]
[1718900252887,7.5216,132.95,132.92,45.0]
[1718900253281,7.5206,132.97,132.92,52.5232]
[1718900253481,7.5202,132.98,132.93,7.5222]
[1718900253711,7.5202,132.98,132.94,45.0]
[1718900254172,18.7966,133.01,132.94,45.0]
[1718900254373,7.5195,132.99,132.94,52.5218]
[1718900254880,7.5214,132.96,132.91,7.5236]
[1718900255196,7.5214,132.96,132.92,45.0]
[1718900255387,7.5214,132.96,132.91,7.5236]
[1718900255587,7.5214,132.96,132.92,45.0]
[1718900255782,18.8011,132.98,132.88,18.8136]
[1718900255995,7.5238,132.91,132.86,7.5265]
[1718900256199,45.0,133.0,132.84,18.8136]
[1718900256375,7.523,132.93,132.86,18.8163]
[1718900256781,7.523,132.93,132.88,7.5253]
[1718900257000,7.5244,132.9,132.83,7.5282]
[1718900257186,7.5244,132.9,132.82,628.3334]
[1718900257381,7.5267,132.86,132.85,6.3363]
[1718900258089,45.0,132.97,132.85,6.3363]
[1718900258402,7.5255,132.89,132.85,6.3363]
[1718900258599,7.5256,132.88,132.85,6.3363]
[1718900259302,18.807,132.93,132.85,6.3363]
[1718900259481,7.5256,132.88,132.85,6.3363]
[1718900259682,18.8096,132.92,132.85,6.3363]
[1718900259882,37.609,132.95,132.82,15.9738]
[1718900260090,45.0,132.94,132.82,15.9738]
[1718900260306,7.528,132.84,132.82,15.9738]
[1718900261001,7.5274,132.85,132.82,15.9738]
[1718900261302,7.5267,132.86,132.82,15.9738]
[1718900261505,7.5265,132.87,132.82,23.5023]
[1718900261714,7.5277,132.85,132.83,20.0]
[1718900262014,7.5268,132.86,132.82,15.9738]
[1718900263112,37.6176,132.92,132.82,15.9738]
[1718900263113,18.8153,132.88,132.82,15.9738]
[1718900263300,7.5284,132.83,132.81,6.6115]
[1718900263816,7.5281,132.84,132.81,6.6115]
[1718900264183,7.5277,132.85,132.81,6.6115]
[1718900264507,7.5277,132.85,132.77,15.1126]
[1718900264508,37.6344,132.86,132.77,15.1126]
[1718900264701,7.5312,132.78,132.77,15.1126]
[1718900264886,18.8251,132.81,132.77,15.1126]
[1718900265213,7.529,132.82,132.77,15.1126]
[1718900265595,7.529,132.82,132.77,22.6442]
[1718900265802,18.8168,132.86,132.77,15.1126]
[1718900265990,18.8168,132.86,132.78,45.0]
[1718900266186,7.5287,132.83,132.78,52.531]
[1718900266386,37.6275,132.89,132.77,15.1126]
[1718900266387,18.8194,132.85,132.77,15.1126]
[1718900266591,18.8194,132.85,132.78,65.0]
[1718900267304,37.6356,132.86,132.76,6.1522]
[1718900267712,7.533,132.75,132.73,15.5569]
[1718900267898,7.5327,132.76,132.73,15.5569]
[1718900268207,7.5319,132.77,132.73,23.0908]
[1718900268414,18.8267,132.79,132.73,15.5569]
[1718900268614,7.5321,132.77,132.73,15.5569]
[1718900269709,7.5314,132.78,132.73,23.0908]
[1718900270102,7.5318,132.77,132.73,23.0908]
[1718900270295,18.8264,132.8,132.73,15.5569]
[1718900270712,18.8227,132.82,132.73,15.5569]
[1718900270915,7.5303,132.8,132.74,65.17]
[1718900271211,7.5309,132.79,132.74,65.17]
[1718900271405,7.5309,132.79,132.74,65.0]
[1718900271606,7.5301,132.8,132.75,7.5324]
[1718900272323,7.5301,132.8,132.76,7.5323]
[1718900272708,7.5292,132.82,132.77,7.5314]
[1718900272899,18.8195,132.85,132.77,52.5314]
[1718900273103,7.5302,132.8,132.75,7.5326]
[1718900273308,7.5302,132.8,132.76,45.0]
[1718900273515,7.5302,132.8,132.76,65.0]
[1718900273810,7.5277,132.85,132.77,6.0482]
[1718900274015,7.5277,132.85,132.8,7.5298]
[1718900274994,7.5279,132.84,132.8,7.5298]
[1718900276001,7.5274,132.85,132.8,7.5298]
[1718900276702,7.5278,132.84,132.8,7.5298]
[1718900276910,7.5278,132.84,132.79,7.5304]
[1718900277097,43.50430113,132.92,132.78,7.5309]
[1718900277098,37.626,132.89,132.78,7.5309]
[1718900277299,7.5292,132.82,132.79,65.0]
[1718900277500,7.5286,132.83,132.79,72.5306]
[1718900277825,7.528,132.84,132.8,7.5301]
[1718900278323,7.5273,132.85,132.8,7.5297]
[1718900278629,7.5273,132.85,132.81,7.5294]
[1718900279006,18.8183,132.85,132.79,65.0]
[1718900279624,7.5298,132.81,132.77,6.0482]
[1718900279806,7.5293,132.82,132.77,6.0482]
[1718900280006,7.5297,132.81,132.77,6.0482]
[1718900280212,7.5301,132.8,132.77,6.0482]
[1718900280420,7.5298,132.81,132.77,6.0482]
[1718900280724,18.8169,132.86,132.77,6.0482]
[1718900280930,7.5281,132.84,132.79,7.5302]
[1718900281226,37.6263,132.89,132.81,15.6314]
[1718900281227,18.8139,132.89,132.81,15.6314]
[1718900281428,37.6255,132.89,132.82,20.0]
[1718900281601,7.5274,132.85,132.82,20.0]
[1718900281804,7.5268,132.86,132.72,9.979991]
[1718900282135,37.6166,132.92,132.74,33.46]
[1718900282136,7.5274,132.85,132.74,33.46]
[1718900282301,18.82,132.84,132.75,0.34]
[1718900282502,37.627,132.89,132.73,1.74282604]
[1718900282735,7.5332,132.75,132.67,0.822043]
[1718900282908,7.5338,132.74,132.69,7.5362]
[1718900283229,7.5361,132.7,132.67,0.822043]
[1718900283439,7.5354,132.71,132.67,0.822043]
[1718900283603,18.8352,132.73,132.67,0.822043]
[1718900283808,7.536,132.7,132.67,0.822043]
[1718900284306,18.8392,132.71,132.67,0.822043]
[1718900284519,7.5369,132.68,132.67,0.822043]
[1718900285123,7.7059,132.7,132.67,0.822043]
[1718900285325,37.6697,132.74,132.67,0.822043]
[1718900285633,7.5369,132.68,132.67,0.822043]
[1718900286135,7.5358,132.7,132.67,0.822043]
[1718900286310,7.5364,132.69,132.67,0.822043]
[1718900286513,0.17,132.73,132.67,0.822043]
[1718900286514,7.5369,132.68,132.67,0.822043]
[1718900286925,26.5492,132.68,132.67,0.822043]
[1718900287926,7.7069,132.68,132.67,0.822043]
[1718900288235,7.5364,132.69,132.67,0.822043]
[1718900288729,18.8353,132.73,132.67,0.822043]
[1718900288933,7.5358,132.7,132.67,0.822043]
[1718900289115,7.5353,132.71,132.67,0.822043]
[1718900289314,18.8381,132.71,132.67,0.822043]
[1718900289642,18.8353,132.73,132.67,0.822043]
[1718900290012,18.8321,132.76,132.67,8.359443]
[1718900290215,18.8321,132.76,132.68,20.0]
[1718900290416,37.652,132.8,132.67,0.822043]
[1718900290639,20.0,132.79,132.7,7.5357]
[1718900291240,7.5331,132.75,132.7,7.5357]
[1718900291614,7.5336,132.74,132.69,13.7523]
[1718900291950,7.5341,132.73,132.69,6.2162]
[1718900292242,7.5331,132.75,132.7,7.5357]
[1718900292454,20.0,132.79,132.69,6.2162]
[1718900292742,7.5365,132.69,132.67,0.822043]
[1718900293109,7.5369,132.68,132.67,0.822043]
[1718900293510,7.7069,132.68,132.67,0.822043]
[1718900294142,52.7069,132.68,132.67,0.822043]
[1718900295138,7.7069,132.68,132.67,0.822043]
[1718900295639,52.7069,132.68,132.67,4.3e-05]
[1718900295935,7.7069,132.68,132.67,4.3e-05]
[1718900296338,52.7069,132.68,132.67,4.3e-05]
[1718900297217,18.8552,132.59,132.53,0.822043]
[1718900297525,37.7017,132.62,132.53,0.822043]
[1718900297723,18.8541,132.6,132.53,0.822043]
[1718900297926,18.8505,132.63,132.53,0.822043]
[1718900298244,18.8505,132.63,132.54,7.5446]
[1718900298417,7.5416,132.6,132.54,7.5446]
[1718900298619,7.542,132.59,132.54,7.5446]
[1718900298822,7.5432,132.57,132.53,0.822043]
[1718900299129,18.8488,132.64,132.53,0.822043]
[1718900299526,7.5407,132.62,132.56,7.5433]
[1718900299728,26.0482,132.73,132.6,7.5411]
[1718900299729,7.5385,132.66,132.6,7.5411]
[1718900299938,20.0,132.73,132.61,21.39022784]
[1718900300123,7.5363,132.69,132.64,13.928]
[1718900300337,15.8335,132.76,132.64,6.389]
[1718900300838,37.6666,132.75,132.64,21.9358]
[1718900301031,7.5372,132.68,132.64,21.9358]
[1718900301234,37.6666,132.75,132.61,20.0]
[1718900301648,33.5,132.73,132.6,6.4133]
[1718900301965,37.6764,132.71,132.6,6.4133]
[1718900302128,7.5399,132.63,132.6,6.4133]
[1718900302321,18.8406,132.7,132.6,13.9543]
[1718900302534,7.5382,132.66,132.61,9.0489641]
[1718900302827,37.6764,132.71,132.6,6.4133]
[1718900302828,18.8368,132.72,132.65,7.5384]
[1718900303033,18.8353,132.73,132.64,7.539]
[1718900303234,49.64336812,132.78,132.65,20.0]
[1718900303436,7.537,132.68,132.63,7.5396]
[1718900303746,56.5001,132.75,132.63,18.8493]
[1718900303945,7.5349,132.72,132.67,7.5371]
[1718900304544,7.5354,132.71,132.66,7.5379]
[1718900305034,37.6585,132.78,132.64,20.17]
[1718900305228,7.5365,132.69,132.64,7.5388]
[1718900305427,7.5381,132.66,132.62,20.0]
[1718900305626,7.5353,132.71,132.66,7.5377]
[1718900305851,7.5361,132.7,132.65,7.5384]
[1718900306148,7.5347,132.72,132.67,7.5374]
[1718900306656,18.8322,132.76,132.65,18.8465]
[1718900306833,7.5337,132.74,132.69,7.536]
[1718900307547,7.5347,132.72,132.67,23.24]
[1718900307750,7.5347,132.72,132.68,20.0]
[1718900307949,7.5353,132.71,132.68,20.0]
[1718900308152,37.6574,132.78,132.67,15.7029]
[1718900308335,20.0,132.77,132.67,15.7029]
[1718900308731,7.5354,132.71,132.67,15.7029]
[1718900308929,20.0,132.77,132.67,15.7029]
[1718900308930,18.8319,132.76,132.67,15.7029]
[1718900309151,7.5338,132.74,132.69,7.5361]
[1718900309355,7.5347,132.72,132.68,7.5366]
[1718900309538,0.17,132.75,132.69,7.5363]
[1718900309937,7.5338,132.74,132.69,7.5363]
[1718900310138,37.646,132.82,132.7,20.0]
[1718900310339,20.0,132.81,132.7,20.0]
[1718900310554,20.0,132.81,132.67,15.7029]
[1718900311052,7.5373,132.68,132.66,6.6436]
[1718900311263,7.5374,132.67,132.66,6.6436]
[1718900311436,7.5387,132.65,132.61,6.3665]
[1718900311639,33.5,132.74,132.61,6.3665]
[1718900311838,65.17,132.73,132.61,6.3665]
[1718900312053,7.5398,132.63,132.61,6.3665]
[1718900312237,18.8479,132.65,132.59,15.8122]
[1718900312460,7.5409,132.61,132.59,15.8122]
[1718900312655,18.8502,132.63,132.57,6.6119]
[1718900312859,20.0,132.62,132.57,6.6119]
[1718900313152,7.54,132.63,132.58,7.5425]
[1718900313333,7.5393,132.64,132.59,7.542]
[1718900313537,7.5392,132.64,132.6,7.541]
[1718900313749,7.5402,132.63,132.58,7.5425]
[1718900313945,19.018,132.64,132.57,6.6119]
[1718900314165,0.17,132.64,132.57,6.6119]
[1718900314461,7.5429,132.58,132.54,16.0433]
[1718900314661,37.8673,132.64,132.54,16.0433]
[1718900314662,7.5416,132.6,132.55,7.544]
[1718900314852,7.5411,132.61,132.56,7.5436]
[1718900315165,7.542,132.59,132.54,23.588]
[1718900315363,18.8507,132.63,132.54,23.588]
[1718900315540,0.17,132.62,132.54,16.0433]
[1718900315737,7.5403,132.63,132.54,16.0433]
[1718900315948,7.5403,132.62,132.57,7.5427]
[1718900316166,7.5415,132.6,132.55,27.5441]
[1718900316473,19.0193,132.64,132.55,27.5441]
[1718900316669,0.17,132.64,132.55,20.0]
[1718900316865,7.541,132.61,132.56,7.5434]
[1718900317042,7.541,132.61,132.55,20.0]
[1718900317043,7.5415,132.6,132.57,20.0]
[1718900317244,7.5415,132.6,132.55,27.5441]
[1718900317450,19.0192,132.64,132.56,7.5435]
[1718900317451,7.541,132.61,132.56,7.5435]
[1718900317650,7.541,132.61,132.57,20.0]
[1718900317967,7.5392,132.64,132.6,7.5414]
[1718900318262,37.6774,132.71,132.61,1.46820489]
[1718900318466,37.6774,132.71,132.57,20.0]
[1718900318467,20.0,132.7,132.57,20.0]
[1718900318664,7.5405,132.62,132.57,7.5428]
[1718900318963,7.5409,132.61,132.56,7.5435]
[1718900319165,7.5409,132.61,132.57,20.0]
[1718900319367,37.6863,132.68,132.54,16.0433]
[1718900319368,7.542,132.6,132.54,16.0433]
[1718900319549,71.1863,132.68,132.54,16.0433]
[1718900319866,7.5411,132.61,132.56,7.5437]
[1718900320084,65.17,132.67,132.54,16.0433]
[1718900320772,6.05419226,132.74,132.54,16.0433]
[1718900320773,37.658,132.78,132.65,6.6058]
[1718900320945,7.5341,132.73,132.68,7.5365]
[1718900321260,37.658,132.78,132.65,6.6058]
[1718900321459,7.5351,132.72,132.67,7.5374]
[1718900321646,7.5354,132.71,132.66,27.5375]
[1718900321847,54.592,132.82,132.66,27.5375]
[1718900321848,18.8322,132.76,132.66,20.0]
[1718900322159,7.535,132.72,132.67,7.5369]
[1718900322362,18.8322,132.76,132.66,20.0]
[1718900322363,7.5336,132.74,132.69,7.5363]
[1718900322569,18.8282,132.78,132.7,20.0]
[1718900322861,7.5351,132.72,132.69,20.0]
[1718900323062,7.5335,132.74,132.69,27.536]
[1718900323362,18.831,132.76,132.69,20.0]
[1718900323561,37.6501,132.81,132.69,20.0]
[1718900323562,18.827,132.79,132.69,20.0]
[1718900323770,37.6501,132.81,132.69,20.0]
[1718900323956,20.0,132.8,132.69,20.0]
[1718900324151,7.5347,132.72,132.69,20.0]
[1718900324355,20.0,132.8,132.69,20.0]
[1718900324572,7.533,132.75,132.7,7.5354]
[1718900324743,7.533,132.75,132.69,27.5361]
[1718900324948,7.533,132.75,132.69,20.0]
[1718900325155,7.5326,132.76,132.7,7.5352]
[1718900325354,37.6589,132.78,132.68,16.2237]
[1718900325649,20.0,132.77,132.65,6.6058]
[1718900325848,18.838,132.71,132.65,6.6058]
[1718900326055,20.0,132.77,132.65,6.6058]
[1718900326252,7.5375,132.67,132.65,6.6058]
[1718900326458,7.537,132.68,132.65,6.6058]
[1718900326667,7.5364,132.69,132.65,6.6058]
[1718900326980,7.538,132.66,132.65,6.6058]
[1718900327151,7.538,132.66,132.63,16.3119]
[1718900327354,7.538,132.66,132.64,20.0]
[1718900327674,7.5393,132.64,132.61,6.5377]
[1718900328165,7.5397,132.63,132.61,6.5377]
[1718900328769,37.6746,132.72,132.61,6.5377]
[1718900329074,18.8409,132.69,132.61,6.5377]
[1718900329458,7.5383,132.66,132.62,0.37819773]
[1718900329960,7.5394,132.64,132.61,6.5377]
[1718900332676,0.17,132.65,132.59,20.0]
[1718900332973,7.5404,132.62,132.59,20.5529724]
[1718900333184,0.17,132.65,132.58,15.5561]
[1718900333355,0.17,132.65,132.57,6.2053]
[1718900333356,7.5415,132.6,132.57,6.2053]
[1718900333551,7.5404,132.62,132.57,6.2053]
[1718900333856,7.5405,132.62,132.57,13.7482]
[1718900334257,19.0166,132.65,132.6,7.5414]
[1718900334258,7.5394,132.64,132.6,7.5414]
[1718900334462,18.8438,132.67,132.57,25.0619]
[1718900334662,7.5392,132.64,132.59,7.5418]
[1718900334952,7.5412,132.61,132.58,1.56344683]
[1718900335160,18.8506,132.63,132.58,21.56344683]
[1718900335484,7.5416,132.6,132.58,1.56344683]
[1718900335778,18.8506,132.63,132.57,6.2053]
[1718900335958,0.17,132.62,132.57,6.2053]
[1718900336156,0.17,132.62,132.54,15.056]
[1718900336360,7.5428,132.58,132.54,15.056]
[1718900336862,7.5433,132.57,132.54,16.5634749]
[1718900337173,7.5428,132.58,132.54,15.056]
[1718900337487,7.5432,132.57,132.54,15.056]
[1718900337863,7.5428,132.58,132.54,15.056]
[1718900338377,7.5436,132.57,132.54,15.056]
[1718900338761,18.8538,132.6,132.54,15.056]
[1718900338973,7.5429,132.58,132.54,15.056]
[1718900339171,7.5429,132.58,132.54,22.6008]
[1718900339563,7.5422,132.59,132.54,22.6008]
[1718900340167,7.5441,132.56,132.54,15.056]
[1718900340371,18.8554,132.59,132.53,0.822043]
[1718900340372,18.859,132.57,132.53,0.822043]
[1718900341384,7.5446,132.55,132.53,0.822043]
[1718900341790,37.6997,132.63,132.53,0.822043]
[1718900341791,18.8553,132.59,132.53,0.822043]
[1718900342088,7.5435,132.57,132.53,20.822043]
[1718900342264,37.7006,132.63,132.53,20.822043]
[1718900342465,7.5448,132.54,132.53,0.822043]
[1718900342670,7.5445,132.55,132.53,0.822043]
[1718900342876,18.8549,132.6,132.53,0.822043]
[1718900343082,7.5448,132.54,132.53,0.822043]
[1718900343686,7.7148,132.54,132.53,0.822043]
[1718900343895,27.7148,132.54,132.53,4.3e-05]
[1718900344190,72.7148,132.54,132.53,4.3e-05]
[1718900344778,7.7148,132.54,132.53,4.3e-05]
[1718900345773,7.5448,132.54,132.53,4.3e-05]
[1718900346089,37.7006,132.63,132.53,7.545043]
[1718900346090,7.5429,132.58,132.53,7.545043]
[1718900346291,7.544,132.56,132.54,3.89697754]
[1718900346467,18.855,132.6,132.53,4.3e-05]
[1718900346987,7.5428,132.58,132.54,7.5447]
[1718900347194,20.0,132.62,132.54,7.5447]
[1718900347195,7.5422,132.59,132.54,7.5447]
[1718900347383,7.5422,132.59,132.55,7.5442]
[1718900347568,20.0,132.62,132.53,4.3e-05]
[1718900347764,7.544,132.56,132.53,4.3e-05]
[1718900347970,7.5433,132.57,132.53,4.3e-05]
[1718900348277,7.5443,132.55,132.53,4.3e-05]
[1718900348468,7.5448,132.54,132.53,4.3e-05]
[1718900348900,7.7148,132.54,132.53,4.3e-05]
[1718900349278,27.7148,132.54,132.53,4.3e-05]
[1718900349670,7.7148,132.54,132.53,4.3e-05]
[1718900350365,27.7148,132.54,132.53,4.3e-05]
[1718900350565,72.7148,132.54,132.53,4.3e-05]
[1718900350991,65.17,132.54,132.4,1.6322078]
[1718900351190,7.5522,132.41,132.4,1.6322078]
[1718900351500,71.2016,132.53,132.4,1.6322078]
[1718900351889,18.8694,132.49,132.42,7.5516]
[1718900352082,18.8686,132.5,132.4,1.6322078]
[1718900352283,65.0,132.53,132.4,1.6322078]
[1718900352571,0.17,132.52,132.43,7.551]
[1718900352789,7.5486,132.48,132.43,7.551]
[1718900353090,19.0364,132.52,132.4,9.1847078]
[1718900353091,7.5504,132.45,132.4,9.1847078]
[1718900353304,19.0364,132.52,132.41,20.0]
[1718900353598,18.8712,132.48,132.4,1.6322078]
[1718900353782,57.7288,132.53,132.4,1.6322078]
[1718900354092,18.8709,132.48,132.4,1.6322078]
[1718900354291,45.17,132.52,132.4,1.6322078]
[1718900354292,65.0,132.47,132.4,1.6322078]
[1718900354497,7.551,132.44,132.4,1.6322078]
[1718900354681,18.8801,132.42,132.39,0.8726545]
[1718900354880,18.8801,132.42,132.31,6.6038]
[1718900354881,7.5536,132.39,132.31,6.6038]
[1718900355076,7.5539,132.39,132.34,7.5562]
[1718900355271,45.0,132.45,132.3,22.5392]
[1718900355477,20.0,132.47,132.3,56.0992]
[1718900355677,20.0,132.47,132.31,22.64]
[1718900355875,18.8748,132.46,132.37,7.5541]
[1718900356086,20.0,132.47,132.35,18.8885]
[1718900356379,7.5502,132.45,132.39,7.5532]
[1718900356584,20.0,132.5,132.39,6.1367]
[1718900356790,21.3795,132.52,132.39,13.6899]
[1718900356791,7.551,132.44,132.39,13.6899]
[1718900357076,7.55,132.45,132.41,7.5522]
[1718900357287,20.0,132.51,132.39,6.1367]
[1718900357676,7.5524,132.41,132.39,6.1367]
[1718900357872,45.22,132.49,132.35,6.0624]
[1718900358184,7.5536,132.39,132.35,13.6181]
[1718900358391,7.553,132.4,132.35,13.6181]
[1718900358780,7.5522,132.42,132.35,6.0624]
[1718900359001,7.5507,132.44,132.39,7.5532]
[1718900359186,20.0,132.51,132.35,24.9514]
[1718900359386,7.5526,132.41,132.36,27.5548]
[1718900359701,18.8756,132.45,132.38,7.5536]
[1718900359907,7.5512,132.43,132.38,7.5536]
[1718900360404,7.5507,132.44,132.39,7.553]
[1718900360707,65.22,132.51,132.37,7.5545]
[1718900360893,7.5519,132.42,132.37,7.5545]
[1718900361286,18.8761,132.45,132.37,7.5544]
[1718900361287,7.5526,132.41,132.37,7.5544]
[1718900361598,18.8761,132.45,132.36,20.0]
[1718900361796,7.5503,132.45,132.4,7.5525]
[1718900362306,18.8715,132.48,132.41,7.552]
[1718900362517,18.8715,132.48,132.37,18.8862]
[1718900362518,18.8682,132.5,132.38,16.6443]
[1718900362682,7.5469,132.51,132.46,7.5492]
[1718900362887,18.8622,132.54,132.46,7.5492]
[1718900363081,7.5468,132.51,132.46,7.5492]
[1718900363301,7.5483,132.48,132.43,7.5507]
[1718900363489,7.5468,132.51,132.44,20.0]
[1718900363695,18.8624,132.54,132.48,6.2978]
[1718900363884,7.5466,132.51,132.48,6.2978]
[1718900364208,18.8591,132.57,132.48,6.2978]
[1718900364415,7.5447,132.55,132.5,7.5469]
[1718900364898,16.5938,132.62,132.48,6.2978]
[1718900364899,18.8577,132.58,132.48,6.2978]
[1718900365109,16.5938,132.62,132.49,38.8692]
[1718900365110,7.5438,132.56,132.49,38.8692]
[1718900365308,7.5438,132.56,132.51,7.5462]
[1718900365500,7.5434,132.57,132.52,7.5459]
[1718900365689,18.8538,132.6,132.53,7.5452]
[1718900365690,7.5427,132.58,132.53,7.5452]
[1718900365903,7.5422,132.59,132.54,7.5447]
[1718900366510,7.5426,132.58,132.53,7.5452]
[1718900367584,18.851,132.62,132.5,18.8666]
[1718900367781,38.8535,132.61,132.51,20.17]
[1718900367997,7.5426,132.58,132.53,7.5451]
[1718900368204,7.5422,132.59,132.51,39.0353]
[1718900368512,7.5422,132.59,132.54,7.5447]
[1718900368809,7.5445,132.55,132.48,6.2978]
[1718900369012,7.5445,132.55,132.5,7.5468]
[1718900369303,7.5441,132.56,132.51,7.5462]
[1718900369504,18.8527,132.61,132.54,7.5447]
[1718900369807,7.5437,132.56,132.51,7.5463]
[1718900370032,18.8548,132.6,132.48,6.2978]
[1718900370218,7.5416,132.6,132.55,7.5443]
[1718900370512,7.5421,132.59,132.54,7.5446]
[1718900370810,7.5413,132.61,132.56,7.5434]
[1718900370992,7.5413,132.61,132.56,7.5433]
[1718900371194,7.5415,132.6,132.55,13.7774]
[1718900371509,18.848,132.64,132.55,13.7774]
[1718900371510,7.5405,132.62,132.57,7.5431]
[1718900371698,7.5401,132.63,132.58,7.5425]
[1718900372209,7.5405,132.62,132.57,7.5429]
[1718900372406,7.5405,132.62,132.55,6.2333]
[1718900372407,7.5399,132.63,132.58,7.5423]
[1718900372604,18.848,132.71,132.55,6.2333]
[1718900372805,18.848,132.71,132.58,7.5425]
[1718900372806,7.54,132.63,132.58,7.5425]
[1718900372988,18.8497,132.63,132.56,20.0]
[1718900373185,7.5418,132.6,132.56,20.0]
[1718900373715,7.5409,132.61,132.57,7.5426]
[1718900373920,52.388,132.7,132.56,20.0]
[1718900374217,45.17,132.69,132.56,20.0]
[1718900374413,7.5406,132.62,132.58,7.5424]
[1718900374616,7.5397,132.64,132.59,7.542]
[1718900374817,7.541,132.61,132.57,7.543]
[1718900375117,7.54,132.63,132.58,7.5423]
[1718900375314,7.54,132.63,132.59,7.5418]
[1718900375522,20.0,132.68,132.6,7.5413]
[1718900375523,7.5388,132.65,132.6,7.5413]
[1718900375695,7.5395,132.64,132.59,7.5418]
[1718900375900,41.41518609,132.74,132.6,20.0]
[1718900375901,18.8397,132.7,132.6,20.0]
[1718900376099,7.5366,132.69,132.64,7.5389]
[1718900376400,7.5374,132.68,132.63,7.5395]
[1718900376723,7.5366,132.69,132.65,7.5385]
[1718900377012,7.5366,132.69,132.64,14.0414]
[1718900377318,7.5371,132.68,132.64,6.5023]
[1718900377504,7.5371,132.68,132.64,14.0413]
[1718900377505,7.5372,132.68,132.64,14.0413]
[1718900378096,7.5366,132.69,132.64,14.0412]
[1718900378498,7.537,132.68,132.64,14.0412]